lending/lending_fUSD_20251107
["ID","MTS","AMOUNT","RATE_DAILY","PERIOD"]
[393375305,1762545132149,-10000.01,0.0001649,2]
[393375306,1762545132250,-10000.01,0.0001649,2]
[393375307,1762545137792,-973.2,0.00016438,2]
[393375308,1762545138017,-8053.61,0.0001649,2]
[393375309,1762545138032,-10000.01,0.0001649,2]
[393375310,1762545138077,-10000.01,0.0001649,2]
[393375311,1762545138091,-10000.01,0.0001649,2]
[393375340,1762545830827,299.99,0.00016922,4]
[393375341,1762545906256,-2559.61,0.00015869,2]
[393375342,1762545960561,5515.0,0.00017,3]
[393375343,1762545992289,5515.0,0.000167,3]
[393375386,1762546085130,5515.0,0.000168,5]
[393375388,1762546092602,-200.0,0.00015898,2]
[393375395,1762546231473,-195.0,0.00016312,2]
[393375396,1762546231483,-185.78389073,0.00016325,2]
[393375397,1762546231492,-210.67,0.00016325,2]
[393375398,1762546231502,-743.56265052,0.0001639,2]
[393375399,1762546231511,-245.64012585,0.0001639,2]
[393375400,1762546231521,-166.67,0.00016397,2]
[393375401,1762546231531,-1200.0,0.00016472,2]
[393375402,1762546231540,-504.43139356,0.00016473,2]
[393375403,1762546231550,-500.0,0.00016473,2]
[393375404,1762546231560,-361.8306267,0.00016473,2]
[393375405,1762546231569,-163.35,0.0001648,2]
[393375406,1762546231578,-300.0,0.00016487,2]
[393375407,1762546231587,-1000.0,0.00016488,2]
[393375408,1762546231596,-550.0,0.00016488,2]
[393375409,1762546231605,-500.0,0.00016489,2]
[393375410,1762546231614,-500.0,0.00016489,2]
[393375411,1762546231623,-319.48,0.00016489,2]
[393375412,1762546231632,-500.0,0.00016489,2]
[393375413,1762546231641,-500.0,0.00016489,2]
[393375414,1762546231650,-500.0,0.00016489,2]
[393375415,1762546231659,-500.0,0.00016489,2]
[393375416,1762546231668,-1000.0,0.00016489,2]
[393375417,1762546231677,-500.0,0.00016489,2]
[393375418,1762546231685,-500.0,0.00016489,2]
[393375419,1762546231694,-500.0,0.00016489,2]
[393375420,1762546231703,-287.14945757,0.00016489,2]
[393375421,1762546231711,-500.0,0.00016489,2]
[393375422,1762546231720,-500.0,0.00016489,2]
[393375423,1762546231729,-500.0,0.00016489,2]
[393375424,1762546231738,-500.0,0.00016489,2]
[393375425,1762546231747,-500.0,0.00016489,2]
[393375426,1762546231756,-500.0,0.00016489,2]
[393375427,1762546231766,-500.0,0.00016489,2]
[393375428,1762546231775,-233.3235475,0.00016489,2]
[393375429,1762546231784,-500.0,0.00016489,2]
[393375430,1762546231793,-500.0,0.00016489,2]
[393375431,1762546231802,-18092.31,0.00016489,2]
[393375432,1762546231813,-2488.53,0.00016489,2]
[393375433,1762546231822,-6280.74,0.00016489,2]
[393375434,1762546231831,-10627.69,0.00016489,2]
[393375435,1762546231841,-235984.86746263,0.0001649,2]
[393375437,1762546231853,-1048.876936,0.0001649,2]
[393375440,1762546231881,-10326.99999996,0.0001649,2]
[393375443,1762546231892,-10358.2390434,0.0001649,2]
[393375445,1762546231903,-1034.9,0.0001649,2]
[393375447,1762546231914,-500.0,0.0001649,2]
[393375449,1762546231927,-25306.59590665,0.0001649,2]
[393375453,1762546231942,-475.74252814,0.0001649,2]
[393375470,1762546237350,-1050.00000002,0.0001649,2]
[393375471,1762546237404,-1673.89265856,0.0001649,2]
[393375472,1762546237514,-1089.98364,0.0001649,2]
[393375473,1762546237527,-1000.0,0.0001649,2]
[393375474,1762546237539,-1104.3042,0.0001649,2]
[393375475,1762546237550,-2200.0,0.0001649,2]
[393375476,1762546237572,-3817.5170809,0.0001649,2]
[393375484,1762546239488,-526.89907789,0.0001649,2]
[393375485,1762546239499,-57891.99146585,0.0001649,2]
[393375486,1762546239509,-1000.0,0.0001649,2]
[393375487,1762546239518,-743.56265052,0.00016558,2]
[393375488,1762546239527,-500.0,0.00016589,2]
[393375489,1762546239536,-500.0,0.00016589,2]
[393375490,1762546239545,-500.0,0.00016589,2]
[393375491,1762546239554,-588.39813314,0.00016589,2]
[393375492,1762546239563,-245.6401258,0.00016606,2]
[393375493,1762546239575,-666.51673486,0.00016608,2]
[393375494,1762546239584,-743.56265052,0.00016726,2]
[393375495,1762546239594,-319.48,0.00016763,2]
[393375496,1762546239603,-245.6401258,0.00016821,2]
[393375497,1762546239612,-532.2352,0.00016877,2]
[393375498,1762546239622,-743.56265052,0.00016893,2]
[393375499,1762546239631,-500.0,0.00016921,2]
[393375500,1762546239640,-500.0,0.00016921,2]
[393375501,1762546239649,-1584.53,0.00016922,2]
[393375502,1762546239658,-1168.11,0.00016922,2]
[393375503,1762546239668,-15062.52,0.00016922,2]
[393375504,1762546239677,-150.99,0.00016922,2]
[393375505,1762546239686,-9999.99,0.00016922,2]
[393375506,1762546239696,-824.5,0.00016922,2]
[393375507,1762546239705,-9999.99,0.00016922,2]
[393375508,1762546239714,-1533.99,0.00016922,2]
[393375509,1762546239723,-9999.99,0.00016922,2]
[393375510,1762546239732,-499.99,0.00016922,2]
[393375511,1762546239741,-344.7,0.00016922,2]
[393375512,1762546239750,-9375.65,0.00016922,2]
[393375513,1762546239759,-999.99,0.00016922,2]
[393375514,1762546239769,-6699.34,0.00016922,2]
[393375515,1762546239779,-3406.89,0.00016986,2]
[393375516,1762546239788,-250.0,0.00017,2]
[393375517,1762546239798,-765.99026,0.00017,2]
[393375518,1762546239807,-647.04253758,0.00017021,2]
[393375519,1762546239817,-319.48,0.00017037,2]
[393375520,1762546239830,-245.6401258,0.00017037,2]
[393375521,1762546239840,-743.56265052,0.00017061,2]
[393375522,1762546239850,-348.62,0.00017065,2]
[393375523,1762546239860,-500.0,0.00017099,2]
[393375524,1762546239870,-573.60590585,0.00017099,2]
[393375525,1762546239880,-2000.0,0.000172,6]
[393375526,1762546239890,-743.56265052,0.00017229,2]
[393375527,1762546239900,-210.67,0.00017232,2]
[393375528,1762546239909,-245.6401258,0.00017253,2]
[393375529,1762546239919,-166.67,0.00017299,2]
[393375530,1762546239928,-4100.0,0.000173,6]
[393375531,1762546239938,-743.56265052,0.00017397,2]
[393375532,1762546239947,-6200.0,0.000174,6]
[393375533,1762546239957,-403.1,0.00017422,2]
[393375534,1762546239966,-1256.0,0.0001745,2]
[393375535,1762546239976,-245.6401258,0.00017469,2]
[393375536,1762546239986,-359.94045034,0.00017488,2]
[393375537,1762546239995,-8300.0,0.000175,6]
[393375538,1762546240005,-343.0,0.00017562,2]
[393375539,1762546240016,-743.56265052,0.00017564,2]
[393375540,1762546240025,-454.0,0.00017575,2]
[393375541,1762546240035,-10300.0,0.000176,6]
[393375542,1762546240045,-5000.0,0.00017628,2]
[393375543,1762546240055,-893.85465609,0.00017653,2]
[393375544,1762546240070,-221.84453216,0.00017657,2]
[393375545,1762546240080,-245.6401258,0.00017684,2]
[393375546,1762546240089,-500.0,0.00017699,2]
[393375547,1762546240099,-500.0,0.00017699,2]
[393375548,1762546240110,-2000.0,0.000177,6]
[393375549,1762546240120,-300.0,0.00017702,2]
[393375550,1762546240130,-300.0,0.00017719,2]
[393375551,1762546240141,-150.0,0.00017723,2]
[393375552,1762546240151,-500.0,0.00017727,2]
[393375553,1762546240160,-1000.0,0.0001773,2]
[393375554,1762546240169,-150.0,0.00017731,2]
[393375555,1762546240179,-1000.0,0.00017732,2]
[393375556,1762546240189,-743.56265052,0.00017732,2]
[393375557,1762546240199,-1000.0,0.00017733,2]
[393375558,1762546240209,-150.0,0.00017739,2]
[393375559,1762546240222,-1000.0,0.00017739,2]
[393375560,1762546240231,-1000.0,0.00017747,2]
[393375561,1762546240241,-1000.0,0.00017753,2]
[393375562,1762546240251,-150.0,0.00017753,2]
[393375563,1762546240262,-1000.0,0.00017755,2]
[393375564,1762546240273,-300.0,0.00017755,2]
[393375565,1762546240470,-150.0,0.00017764,2]
[393375566,1762546240480,-150.0,0.00017767,2]
[393375567,1762546240490,-1000.0,0.00017769,2]
[393375568,1762546240500,-150.0,0.00017776,2]
[393375569,1762546240509,-692.99300138,0.0001778,2]
[393375570,1762546240519,-454.0,0.0001778,2]
[393375571,1762546240528,-1000.0,0.00017781,2]
[393375572,1762546240538,-1000.0,0.00017784,2]
[393375573,1762546240551,-150.0,0.00017785,2]
[393375574,1762546240560,-1188.0,0.00017787,2]
[393375575,1762546240573,-905.0,0.00017787,2]
[393375576,1762546240582,-150.0,0.00017787,2]
[393375577,1762546240592,-361.09581463,0.00017787,2]
[393375578,1762546240602,-1000.0,0.00017789,2]
[393375579,1762546240611,-150.0,0.00017789,2]
[393375580,1762546240620,-6476.0,0.0001779,2]
[393375581,1762546240630,-6659.0,0.0001779,2]
[393375582,1762546240640,-2142.0,0.0001779,2]
[393375583,1762546240649,-150.0,0.00017798,2]
[393375584,1762546240659,-2000.0,0.000178,6]
[393375585,1762546240668,-1000.0,0.00017802,2]
[393375586,1762546240678,-150.0,0.00017802,2]
[393375587,1762546240688,-150.0,0.00017803,2]
[393375588,1762546240697,-1000.0,0.00017804,2]
[393375589,1762546240707,-1000.0,0.00017805,2]
[393375590,1762546240716,-379.74807102,0.0001781,2]
[393375591,1762546240725,-300.0,0.00017811,2]
[393375592,1762546240735,-1000.0,0.00017812,2]
[393375593,1762546240744,-150.0,0.00017815,2]
[393375594,1762546240753,-1000.0,0.00017817,2]
[393375595,1762546240763,-300.0,0.00017817,2]
[393375596,1762546240772,-150.0,0.0001782,2]
[393375597,1762546240781,-7000.0,0.0001782,2]
[393375598,1762546240791,-1000.0,0.00017823,2]
[393375599,1762546240800,-150.0,0.00017824,2]
[393375600,1762546240810,-1000.0,0.00017825,2]
[393375601,1762546240821,-150.0,0.00017826,2]
[393375602,1762546240830,-300.0,0.00017827,2]
[393375603,1762546240840,-300.0,0.00017828,2]
[393375604,1762546240850,-1000.0,0.00017833,2]
[393375605,1762546240860,-1000.0,0.00017833,2]
[393375606,1762546240869,-1000.0,0.00017835,2]
[393375607,1762546240879,-150.0,0.00017841,2]
[393375608,1762546240888,-150.0,0.00017842,2]
[393375609,1762546240897,-150.0,0.00017844,2]
[393375610,1762546240907,-1000.0,0.00017846,2]
[393375611,1762546240916,-2000.0,0.00017855,2]
[393375612,1762546240925,-500.0,0.00017855,2]
[393375613,1762546240937,-150.0,0.00017855,2]
[393375614,1762546240947,-2000.0,0.00017856,2]
[393375615,1762546240956,-2000.0,0.00017856,2]
[393375616,1762546240966,-2000.0,0.00017856,2]
[393375617,1762546240975,-2000.0,0.00017856,2]
[393375618,1762546240984,-500.0,0.00017856,2]
[393375619,1762546240994,-200.0,0.00017856,2]
[393375620,1762546241004,-1000.0,0.00017859,2]
[393375621,1762546241015,-150.0,0.00017861,2]
[393375622,1762546241024,-1000.0,0.00017866,2]
[393375623,1762546241033,-1000.0,0.00017867,2]
[393375624,1762546241042,-1000.0,0.00017867,2]
[393375625,1762546241052,-300.0,0.00017868,2]
[393375626,1762546241062,-209.656,0.00017873,2]
[393375627,1762546241075,-3004.939,0.00017876,2]
[393375628,1762546241084,-1000.0,0.00017878,2]
[393375629,1762546241093,-1000.0,0.00017879,2]
[393375630,1762546241103,-2500.0,0.00017882,3]
[393375631,1762546241113,-1000.0,0.00017884,2]
[393375632,1762546241122,-150.0,0.00017884,2]
[393375633,1762546241131,-500.0,0.00017889,2]
[393375634,1762546241141,-150.0,0.00017889,2]
[393375635,1762546241149,-500.0,0.00017889,2]
[393375636,1762546241159,-238.31815393,0.00017889,2]
[393375637,1762546241168,-150.0,0.00017889,2]
[393375638,1762546241177,-488.0,0.00017889,2]
[393375639,1762546241186,-150.0,0.00017889,2]
[393375640,1762546241195,-435.0,0.00017889,2]
[393375641,1762546241205,-150.0,0.00017889,2]
[393375642,1762546241215,-150.0,0.00017889,2]
[393375643,1762546241224,-200.0,0.00017889,2]
[393375644,1762546241234,-150.0,0.00017889,2]
[393375645,1762546241244,-150.0,0.00017889,2]
[393375646,1762546241253,-150.0,0.00017889,2]
[393375647,1762546241263,-150.0,0.00017889,2]
[393375648,1762546241272,-150.0,0.00017889,2]
[393375649,1762546241281,-2500.0,0.00017891,3]
[393375650,1762546241290,-2500.0,0.00017891,3]
[393375651,1762546241300,-1000.0,0.00017893,2]
[393375652,1762546241310,-1000.0,0.00017896,2]
[393375653,1762546241320,-150.0,0.00017899,2]
[393375654,1762546241329,-1000.0,0.00017899,2]
[393375655,1762546241341,-370.95810537,0.000179,2]
[393375656,1762546241350,-2500.0,0.000179,3]
[393375657,1762546241359,-2500.0,0.000179,3]
[393375658,1762546241368,-410.05833667,0.000179,2]
[393375659,1762546241378,-743.56265052,0.000179,2]
[393375660,1762546241387,-2000.0,0.000179,6]
[393375661,1762546241395,-245.6401258,0.000179,2]
[393375662,1762546241404,-1297.68906116,0.000179,2]
[393375663,1762546241413,-2500.0,0.000179,3]
[393375664,1762546241422,-477.99034883,0.000179,3]
[393375665,1762546241432,-588.90691962,0.000179,2]
[393375666,1762546241441,-300.0,0.00017901,2]
[393375667,1762546241450,-1000.0,0.00017904,2]
[393375668,1762546241459,-300.0,0.00017904,2]
[393375669,1762546241468,-1000.0,0.00017909,2]
[393375670,1762546241477,-150.0,0.00017912,2]
[393375671,1762546241486,-150.0,0.00017914,2]
[393375672,1762546241495,-1000.0,0.00017916,2]
[393375673,1762546241504,-150.0,0.0001792,2]
[393375674,1762546241514,-354.90357546,0.00017922,2]
[393375675,1762546241524,-150.0,0.00017923,2]
[393375676,1762546241534,-300.0,0.00017926,2]
[393375677,1762546241544,-150.0,0.00017928,2]
[393375678,1762546241553,-1000.0,0.0001793,2]
[393375679,1762546241562,-150.0,0.0001793,2]
[393375680,1762546241574,-218.35303527,0.0001793,2]
[393375681,1762546241583,-300.0,0.0001793,2]
[393375682,1762546241592,-321.47978243,0.0001793,2]
[393375683,1762546241602,-195.0,0.0001793,2]
[393375684,1762546241611,-454.0,0.00017934,2]
[393375685,1762546241620,-1000.0,0.00017943,2]
[393375686,1762546241629,-201.61257308,0.00017944,2]
[393375687,1762546241638,-250.0,0.00017944,2]
[393375688,1762546241647,-200.0,0.00017944,2]
[393375689,1762546241656,-300.0,0.00017944,2]
[393375690,1762546241665,-300.0,0.00017944,2]
[393375691,1762546241674,-195.0,0.00017944,2]
[393375692,1762546241684,-1000.0,0.00017948,2]
[393375693,1762546241693,-300.0,0.00017948,2]
[393375694,1762546241702,-600.0,0.00017949,2]
[393375695,1762546241712,-150.0,0.00017949,2]
[393375696,1762546241721,-1000.0,0.00017951,2]
[393375697,1762546241733,-159.61845324,0.00017953,2]
[393375698,1762546241742,-300.0,0.00017954,2]
[393375699,1762546241751,-150.0,0.00017955,2]
[393375700,1762546241761,-1000.0,0.00017956,2]
[393375701,1762546241771,-150.0,0.00017956,2]
[393375702,1762546241780,-300.0,0.00017961,2]
[393375703,1762546241791,-1000.0,0.00017969,2]
[393375704,1762546241800,-150.0,0.0001797,2]
[393375705,1762546241810,-500.0,0.00017973,2]
[393375706,1762546241821,-500.0,0.00017973,2]
[393375707,1762546241830,-500.0,0.00017973,2]
[393375708,1762546241839,-500.0,0.00017973,2]
[393375709,1762546241849,-500.0,0.00017973,2]
[393375710,1762546241858,-216.20372532,0.00017973,2]
[393375711,1762546241868,-500.0,0.00017973,2]
[393375712,1762546241877,-500.0,0.00017973,2]
[393375713,1762546241887,-500.0,0.00017973,2]
[393375714,1762546241896,-500.0,0.00017973,2]
[393375715,1762546241906,-160.71773468,0.00017973,2]
[393375716,1762546241915,-500.0,0.00017973,2]
[393375717,1762546241924,-426.53701258,0.00017973,2]
[393375718,1762546241934,-500.0,0.00017973,2]
[393375719,1762546241944,-160.00494127,0.00017973,2]
[393375720,1762546241953,-500.0,0.00017973,2]
[393375721,1762546241962,-155.22989953,0.00017973,2]
[393375722,1762546241971,-500.0,0.00017973,2]
[393375723,1762546241981,-500.0,0.00017973,2]
[393375724,1762546241990,-159.99826602,0.00017973,2]
[393375725,1762546241999,-504.93289345,0.00017973,2]
[393375726,1762546242009,-500.0,0.00017973,2]
[393375727,1762546242019,-500.0,0.00017973,2]
[393375728,1762546242028,-506.01385206,0.00017973,2]
[393375729,1762546242037,-500.28450458,0.00017973,2]
[393375730,1762546242047,-500.20326054,0.00017973,2]
[393375731,1762546242057,-500.0,0.00017973,2]
[393375732,1762546242069,-500.13599134,0.00017973,2]
[393375733,1762546242078,-461.39396557,0.00017973,2]
[393375734,1762546242088,-500.34822502,0.00017973,2]
[393375735,1762546242097,-500.0,0.00017973,2]
[393375736,1762546242107,-500.0,0.00017973,2]
[393375737,1762546242116,-500.0,0.00017973,2]
[393375738,1762546242127,-503.38998104,0.00017973,2]
[393375739,1762546242136,-501.21360688,0.00017973,2]
[393375740,1762546242145,-500.0,0.00017973,2]
[393375741,1762546242154,-500.0,0.00017973,2]
[393375742,1762546242163,-500.0,0.00017973,2]
[393375743,1762546242172,-500.0,0.00017973,2]
[393375744,1762546242182,-500.50074512,0.00017973,2]
[393375745,1762546242191,-161.17429234,0.00017973,2]
[393375746,1762546242200,-500.0,0.00017973,2]
[393375747,1762546242209,-330.87391277,0.00017973,2]
[393375749,1762546242219,-500.0,0.00017973,2]
[393375751,1762546242228,-205.92818258,0.00017973,2]
[393375752,1762546242237,-500.0,0.00017973,2]
[393375753,1762546242246,-500.0,0.00017973,2]
[393375754,1762546242255,-500.0,0.00017973,2]
[393375755,1762546242265,-500.0,0.00017973,2]
[393375756,1762546242274,-167.36405018,0.00017973,2]
[393375757,1762546242283,-165.77547705,0.00017973,2]
[393375758,1762546242292,-321.53200453,0.00017973,2]
[393375760,1762546242302,-500.0,0.00017973,2]
[393375762,1762546242311,-500.0,0.00017973,2]
[393375764,1762546242321,-280.33323234,0.00017973,2]
[393375766,1762546242330,-500.0,0.00017973,2]
[393375768,1762546242340,-500.0,0.00017973,2]
[393375770,1762546242349,-500.0,0.00017973,2]
[393375771,1762546242359,-1000.0,0.00017975,2]
[393375772,1762546242368,-1000.0,0.00017975,2]
[393375773,1762546242378,-300.0,0.00017975,2]
[393375774,1762546242387,-1000.0,0.00017976,2]
[393375775,1762546242397,-1000.0,0.00017978,2]
[393375776,1762546242406,-150.0,0.00017982,2]
[393375777,1762546242416,-1159.2753099,0.00017986,2]
[393375778,1762546242426,-8058.2060661,0.00017986,2]
[393375779,1762546242435,-169.5094317,0.0001799,2]
[393375781,1762546242445,-169.5094317,0.0001799,2]
[393375783,1762546242454,-169.5094317,0.0001799,2]
[393375785,1762546242463,-163.35,0.0001799,2]
[393375787,1762546242471,-163.35,0.0001799,2]
[393375789,1762546242482,-150.0,0.00017992,2]
[393375792,1762546242491,-11608.2223973,0.00017994,2]
[393375794,1762546242500,-151.0,0.00017997,2]
[393375795,1762546242509,-1000.0,0.00017998,2]
[393375797,1762546242519,-300.0,0.00017999,2]
[393375799,1762546242527,-300.0,0.00017999,2]
[393375800,1762546242537,-300.0,0.00017999,2]
[393375801,1762546242546,-300.0,0.00017999,2]
[393375802,1762546242555,-500.0,0.00017999,2]
[393375803,1762546242564,-500.0,0.00017999,2]
[393375804,1762546242575,-500.0,0.00017999,2]
[393375805,1762546242584,-500.0,0.00017999,2]
[393375806,1762546242593,-500.0,0.00017999,2]
[393375807,1762546242602,-500.0,0.00017999,2]
[393375808,1762546242611,-500.0,0.00017999,2]
[393375809,1762546242620,-500.0,0.00017999,2]
[393375810,1762546242629,-500.0,0.00017999,2]
[393375811,1762546242639,-500.0,0.00017999,2]
[393375812,1762546242648,-590.9677229,0.00017999,2]
[393375813,1762546242658,-585.15023547,0.00017999,2]
[393375814,1762546242667,-521.95,0.00017999,2]
[393375815,1762546242676,-285.82807367,0.00017999,2]
[393375816,1762546242685,-500.0,0.00017999,2]
[393375817,1762546242695,-365.37377435,0.00017999,2]
[393375818,1762546242703,-216.11228569,0.00017999,2]
[393375819,1762546242712,-500.0,0.00017999,2]
[393375820,1762546242722,-6066673.71374803,0.00018,2]
[393375821,1762546242737,-10983.6,0.00018,2]
[393375822,1762546242748,-412.17272481,0.00018,2]
[393375823,1762546242759,-19061.34666389,0.00018,2]
[393375824,1762546242774,-5577.18897,0.00018,2]
[393375825,1762546242831,-4392.21348969,0.00018,2]
[393375826,1762546242842,-1976.32975392,0.00018,2]
[393375827,1762546242853,-645.06582307,0.00018,2]
[393375828,1762546242958,-559.0,0.0001779,2]
[393375829,1762546242968,-4625.348,0.00018,2]
[393375830,1762546242983,-5067.0,0.00018,2]
[393375831,1762546242994,-3251.34162817,0.00018,2]
[393375832,1762546243005,-3319.1158,0.00018,2]
[393375833,1762546243016,-311.98467859,0.00018,2]
[393375834,1762546243048,-22155.9608244,0.00018,2]
[393375835,1762546243060,-15074.29441705,0.00018,2]
[393375836,1762546243077,-1778.40362035,0.00018,2]
[393375837,1762546243091,-413924.11839519,0.00018,2]
[393375838,1762546243102,-517396.66045133,0.00018,2]
[393375839,1762546243114,-517399.99999992,0.00018,2]
[393375840,1762546243130,-517.903994,0.00018,2]
[393375841,1762546243144,-4376.1663188,0.00018,2]
[393375842,1762546243155,-2207.93928992,0.00018,2]
[393375844,1762546245803,-714.75908573,0.00018,2]
[393375845,1762546245862,-2709.64385445,0.00018,2]
[393375846,1762546245874,-421.265,0.00018,2]
[393375847,1762546245918,-23134.052,0.00018,2]
[393375848,1762546245975,-27573.29247323,0.00018,2]
[393375849,1762546245987,-10756.26770969,0.00018,2]
[393375850,1762546245998,-253.52,0.00018,2]
[393375851,1762546246009,-5739.8,0.00018,2]
[393375852,1762546246033,-13319.91331321,0.00018,2]
[393375876,1762546399918,-200.0,0.00015868,2]
[393375896,1762546860332,-250.0,0.00015868,2]
[393375908,1762547118353,999.0,0.00016724,3]
[393375910,1762547119825,719.84419432,9e-05,2]
[393375924,1762547207799,306.25827259,0.00014235,2]
[393375925,1762547229980,-2099.66619801,0.00015,2]
[393375926,1762547230021,-4774.57513707,0.00015,2]
[393375927,1762547230243,-1026.10246691,0.00015,2]
[393375929,1762547269923,7947.80506618,0.00015,2]
[393375930,1762547269947,10000.01,0.00015,2]
[393375931,1762547269970,10000.01,0.00015,2]
[393375932,1762547269994,10000.01,0.00015,2]
[393375933,1762547270016,10000.01,0.00015,2]
[393375934,1762547270039,10000.01,0.00015,2]
[393375935,1762547270063,10000.01,0.00015,2]
[393375936,1762547270086,10000.01,0.00015,2]
[393375937,1762547270109,10000.01,0.00015,2]
[393375938,1762547270135,1638.3540947,0.00015,2]
[393376129,1762547431565,-166.66,0.0001625,2]
[393376131,1762547431574,-252.12,0.00016705,2]
[393376132,1762547431583,-1000.0,0.00016792,2]
[393376134,1762547431593,-195.95978101,0.00017006,2]
[393376136,1762547431602,-509.65,0.00017011,2]
[393376137,1762547431612,-166.66,0.00017106,2]
[393376138,1762547431620,-500.0,0.000172,6]
[393376139,1762547431629,-160.0,0.00017292,2]
[393376140,1762547431638,-803.16008924,0.000173,6]
[393376141,1762547431653,-196.83991076,0.000173,6]
[393376142,1762547431662,-278.89,0.00017338,2]
[393376143,1762547431671,-250.0,0.000174,2]
[393376144,1762547431680,-1500.0,0.000174,6]
[393376145,1762547431690,-2000.0,0.000175,6]
[393376146,1762547431699,-1200.0,0.00017548,2]
[393376147,1762547431708,-300.0,0.00017548,2]
[393376148,1762547431717,-300.0,0.00017548,2]
[393376149,1762547431727,-300.0,0.00017548,2]
[393376150,1762547431736,-178.0,0.00017549,2]
[393376151,1762547431746,-262.3,0.0001755,2]
[393376152,1762547431755,-9999.99,0.0001755,2]
[393376153,1762547431764,-999.99,0.0001755,2]
[393376154,1762547431773,-296.23,0.0001755,2]
[393376155,1762547431783,-7333.27,0.0001755,2]
[393376156,1762547431792,-150.99,0.0001755,2]
[393376157,1762547431801,-151.0,0.00017559,2]
[393376158,1762547431810,-151.0,0.00017559,2]
[393376159,1762547431818,-151.0,0.00017559,2]
[393376160,1762547431828,-151.0,0.00017559,2]
[393376161,1762547431836,-151.0,0.00017559,2]
[393376162,1762547431847,-275.45688593,0.00017559,2]
[393376163,1762547431856,-341.0,0.00017586,2]
[393376164,1762547431866,-2600.0,0.000176,6]
[393376165,1762547431875,-600.0,0.00017624,2]
[393376166,1762547431884,-1000.0,0.0001763,2]
[393376167,1762547431893,-1000.0,0.00017639,2]
[393376168,1762547431901,-1000.0,0.00017656,2]
[393376169,1762547431911,-1000.0,0.00017673,2]
[393376171,1762547431920,-1000.0,0.00017679,2]
[393376173,1762547431928,-893.85465609,0.00017688,2]
[393376175,1762547431937,-500.0,0.000177,6]
[393376177,1762547431946,-195.95978101,0.000177,2]
[393376179,1762547431955,-1000.0,0.00017702,2]
[393376182,1762547431964,-1000.0,0.00017714,2]
[393376185,1762547431973,-1000.0,0.00017717,2]
[393376188,1762547431982,-1000.0,0.00017717,2]
[393376192,1762547431991,-1000.0,0.00017718,2]
[393376195,1762547432000,-1000.0,0.00017719,2]
[393376197,1762547432009,-1000.0,0.00017724,2]
[393376199,1762547432018,-300.0,0.00017728,2]
[393376200,1762547432027,-1000.0,0.00017738,2]
[393376202,1762547432036,-1000.0,0.0001774,2]
[393376204,1762547432047,-341.0,0.00017742,2]
[393376205,1762547432057,-1000.0,0.00017747,2]
[393376206,1762547432066,-221.84453216,0.00017756,2]
[393376207,1762547432075,-1000.0,0.00017761,2]
[393376208,1762547432085,-300.0,0.00017766,2]
[393376209,1762547432095,-1000.0,0.00017789,2]
[393376210,1762547432105,-4803.3073,0.000178,2]
[393376211,1762547432114,-1000.0,0.000178,2]
[393376212,1762547432123,-1797.47000749,0.000178,2]
[393376213,1762547432132,-4899.31346984,0.000178,2]
[393376214,1762547432143,-1604.222,0.000178,2]
[393376215,1762547432152,-159.21712002,0.000178,2]